Cogmind - Beta 15 @@@ ROGUE MODE // 2025.10.13 @ 21:47:00 Player: Prakos Result: Self-destructed Performance ------------- Evolutions (1) 500 Regions Visited (4) 800 Robots Destroyed (7) 35 Value Destroyed (56) 56 Prototype IDs (0) 0 Alien Tech Used (0) 0 Bonus (0) 0 TOTAL SCORE: 1391 Bonus ------- None Cogmind --------- Core Integrity 225/400 Matter 202/300 Energy 78/100 System Corruption 0% Temperature Cool (0) Movement Core (50) Location -9/Storage Parts ------- > --- POWER (1) -------- (None) > --- PROPULSION (2) --- (None) > --- UTILITY (4) ------ Weight Redist. System > --- WEAPON (2) ------- (None) > --- INVENTORY (5) ---- Large Storage Unit Assault Rifle Grenade Launcher Mining Laser Mining Claw Peak State ------------ > --- POWER ------------ Ion Engine > --- PROPULSION ------- Aluminum Leg Aluminum Leg > --- UTILITY ---------- Small Storage Unit Light Armor Plating > --- WEAPON ----------- Assault Rifle Assault Rifle > --- INVENTORY -------- Ion Engine Assault Rifle [Rating: 7] Favorites ----------- Power Ion Engine Engine Ion Engine Propulsion Aluminum Leg Leg Aluminum Leg Utility Small Storage Unit Device Weight Redist. System Storage Small Storage Unit Protection Light Armor Plating Weapon Assault Rifle Ballistic Gun Assault Rifle Build | -11 -10 -10 -9 -9 ------- Run | Yrd Mat Min Mat Sto Slots Evolved 2 | . . . 2 . Power . | . . . . . Propulsion . | . . . . . Utility 2 | . . . 2 . Weapon . | . . . . . Parts Attached 9 | 6 2 . 1 . Power 2 | 1 1 . . . Engine 2 | 1 1 . . . Core . | . . . . . Reactor . | . . . . . Propulsion 2 | 2 . . . . Treads . | . . . . . Leg 2 | 2 . . . . Wheel . | . . . . . Hover . | . . . . . Flight . | . . . . . Utility 3 | 1 1 . 1 . Device 1 | . . . 1 . Storage 1 | 1 . . . . Processor . | . . . . . Hackware . | . . . . . Protection 1 | . 1 . . . Artifact . | . . . . . Weapon 2 | 2 . . . . Energy Gun . | . . . . . Energy Cannon . | . . . . . Ballistic Gun 2 | 2 . . . . Ballistic Cannon . | . . . . . Launcher . | . . . . . Special Weapon . | . . . . . Impact Weapon . | . . . . . Slashing Weapon . | . . . . . Piercing Weapon . | . . . . . Special Melee Weapon . | . . . . . Unidentified Prototypes . | . . . . . Parts Lost 2 | . . 2 . . Power . | . . . . . Propulsion 2 | . . 2 . . Utility . | . . . . . Weapon . | . . . . . Highest Loss Streak 2 | . . 2 . . To Critical Strikes . | . . . . . Average Backups 4 | 1 4 6 5 5 Power . | . . . . . Propulsion . | . . . . . Utility 1 | . . 1 1 1 Weapon 3 | . 2 4 4 4 Tool/Special . | . . . . . Unused Backups 6 | . . 2 . 4 Power . | . . . . . Propulsion . | . . . . . Utility 2 | . . 1 . 1 Weapon 4 | . . 1 . 3 Tool/Special . | . . . . . Average Slot Usage (%) 73 | . 94 78 6 11 Engine 10 | . 14 11 . . Leg 20 | . 28 21 . . Device 1 | . . . 6 11 Storage 10 | . 14 11 . . Protection 7 | . 8 11 . . Ballistic Gun 20 | . 28 22 . . Peak Build Rating 7 | 6 7 7 2 2 Average Rating 5 | 4 6 5 1 2 On Entrance 3 | . 6 7 . 2 Naked Turns 58 | . . 41 17 . Heaviest Build 17 | 14 17 17 . . Greatest Support 20 | 20 20 20 9 9 Greatest Overweight (x) 2 | 2 . . . . Average Overweight (x) . | . . . . . Largest Inventory Capacity 8 | 8 8 8 5 5 Average Capacity 7 | 6 8 7 5 5 Most Carried 7 | 2 7 7 5 5 Average Carried 4 | 1 4 6 4 5 Final Capacity 8 | 8 8 5 5 5 Final Carried 7 | 2 7 5 5 5 Class Distribution -------------------- 100% | Mutant Dominant Class ---------------- Mutant | -10/Materials Mutant | -10/Mines Mutant | -9/Materials Mutant | -9/Storage Resources | -11 -10 -10 -9 -9 ----------- Run | Yrd Mat Min Mat Sto Matter Collected 368 | 194 130 44 . . Remotely . | . . . . . Salvage Created 246 | . 186 60 . . Parts 12 | . 8 4 . . Haulers Intercepted 2 | . 2 . . . Recyclers Shooed 2 | . 1 1 . . Parts Field Recycled . | . . . . . Retrieved Matter . | . . . . . Parts Self-Destructed . | . . . . . Prevented . | . . . . . Kills | -11 -10 -10 -9 -9 ------- Run | Yrd Mat Min Mat Sto Combat Hostiles Destroyed 4 | . . 4 . . Guns 4 | . . 4 . . Classes Destroyed 5 | . 3 2 . . Hauler 2 | . 2 . . . Recycler 1 | . 1 . . . Watcher 1 | . 1 . . . Swarmer 3 | . . 3 . . Assembled 1 | . . 1 . . Best Kill Streak 3 | . 3 3 . . Combat Bots Only 3 | . . 3 . . Max Kills in Single Turn 1 | . 1 1 . . Gunslinging . | . . . . . Exploded . | . . . . . Melee . | . . . . . Uniques/NPCs Destroyed . | . . . . . Combat | -11 -10 -10 -9 -9 -------- Run | Yrd Mat Min Mat Sto Hostile Shots Fired 42 | . . 26 10 6 Missed 12 | . . 6 3 3 Hits 30 | . . 20 7 3 Melee 3 | . . 3 . . Projectile 27 | . . 17 7 3 AOE 2 | . . 2 . . Damage Taken 655 | . 26 437 100 92 Core 284 | . . 109 100 75 Absorbed by Shields . | . . . . . Core Remaining (%) 78 | 100 . 56 . . Volleys Fired 33 | . 15 18 . . Largest 2 | . 2 2 . . Hottest 40 | . 40 40 . . Shots Fired 66 | . 30 36 . . Gun 66 | . 30 36 . . Cannon . | . . . . . Launcher . | . . . . . Special . | . . . . . Kinetic 66 | . 30 36 . . Thermal . | . . . . . Explosive . | . . . . . Electromagnetic . | . . . . . Robot Hit Streak 7 | . 5 7 . . Robot Miss Streak 6 | . 5 6 . . Penetration Max . | . . . . . Secondary Targets . | . . . . . Shots Hit Robots 34 | . 16 18 . . Core Hits 15 | . 7 8 . . Critical Kills 1 | . 1 . . . Critical Parts Destroyed . | . . . . . Critical Strikes 1 | . 1 . . . Destroy 1 | . 1 . . . Melee Attacks . | . . . . . Impact . | . . . . . Slashing . | . . . . . Piercing . | . . . . . Sneak Attacks . | . . . . . Combat Hostiles . | . . . . . Follow-up Attacks . | . . . . . Damage Inflicted 435 | . 206 229 . . Guns 431 | . 202 229 . . Cannons . | . . . . . Explosions . | . . . . . Melee . | . . . . . Ramming 4 | . 4 . . . Kinetic 431 | . 202 229 . . Thermal . | . . . . . Explosive . | . . . . . Electromagnetic . | . . . . . Impact . | . . . . . Slashing . | . . . . . Piercing . | . . . . . Highest Corruption . | . . . . . Average Corruption . | . . . . . Corruption Purged . | . . . . . Corruption Blocked . | . . . . . Overload Shots . | . . . . . Overflow Damage . | . . . . . Projectiles . | . . . . . Explosions . | . . . . . Melee . | . . . . . Knockbacks . | . . . . . Impact . | . . . . . Kinetic . | . . . . . Secondary . | . . . . . Self-Inflicted Damage . | . . . . . Shots . | . . . . . Rammed . | . . . . . Targets Rammed 3 | . 3 . . . Kicked 3 | . 3 . . . Crushed . | . . . . . Highest Temperature 16 | . . 16 . . Average Temperature 10 | . . 10 . . Received Heat Transfer 77 | . . 20 48 9 Siege Activations . | . . . . . Martial Activations . | . . . . . Shielding Activations . | . . . . . Robots Disrupted . | . . . . . Combat Hostiles . | . . . . . Robots Corrupted . | . . . . . Combat Hostiles . | . . . . . Parts Fried . | . . . . . Impact Corruptions . | . . . . . Robots Melted . | . . . . . Combat Hostiles . | . . . . . Parts Melted . | . . . . . Heat Transferred . | . . . . . Parts Sabotaged . | . . . . . Parts Stolen . | . . . . . Parts Stripped . | . . . . . Power Chain Reactions . | . . . . . Alert | -11 -10 -10 -9 -9 ------- Run | Yrd Mat Min Mat Sto Maximum Alert Level . | . . . . . Low Security (%) 100 | 100 100 100 100 100 Level 1 . | . . . . . Level 2 . | . . . . . Level 3 . | . . . . . Level 4 . | . . . . . Level 5 . | . . . . . High Security . | . . . . . Max Security . | . . . . . Peak Influence 70 | . 19 70 9 . Initial 9 | . . . 9 . Average 8 | . 1 24 3 . Influence Increases 135 | . 26 104 5 . Destroy 0b10 Robot/C 60 | . . 60 . . Destroy 0b10 Robot/NC 20 | . 20 . . . Destroy Leader 16 | . 6 10 . . Successful Hack 9 | . . 4 5 . Lose Combat Pursuer 30 | . . 30 . . Influence Decreases 135 | . 26 80 29 . Entered New Map 15 | . . . 15 . Time Decay 100 | . 26 60 14 . Lost Part 20 | . . 20 . . Squads Dispatched . | . . . . . Investigation . | . . . . . Extermination . | . . . . . Reinforcement . | . . . . . Assault . | . . . . . Garrison . | . . . . . Intercept . | . . . . . Searches Triggered . | . . . . . Construction Impeded . | . . . . . Haulers Reinforced . | . . . . . Active Scanning Responses . | . . . . . Cargo Convoy Interrupts . | . . . . . Stealth | -11 -10 -10 -9 -9 --------- Run | Yrd Mat Min Mat Sto Distress Signals . | . . . . . Communications Jammed . | . . . . . Distress Signals . | . . . . . Times Spotted 37 | . 2 27 4 4 Peak Tracking Total 15 | . 3 15 5 4 Tactical Retreats 2 | . . 2 . . Traps | -11 -10 -10 -9 -9 ------- Run | Yrd Mat Min Mat Sto Traps Triggered 3 | . 2 . . 1 Indirectly . | . . . . . Trap Hack Attempts . | . . . . . Triggered . | . . . . . Disarmed . | . . . . . Reprogrammed . | . . . . . Reused . | . . . . . Traps Extracted . | . . . . . Installed . | . . . . . Triggered . | . . . . . Machines | -11 -10 -10 -9 -9 ---------- Run | Yrd Mat Min Mat Sto Machines Disabled . | . . . . . Max in Single Turn . | . . . . . Machines Repaired . | . . . . . Machines Dismantled . | . . . . . Machines Sabotaged . | . . . . . Overloaded Fab Kills . | . . . . . Hacking | -11 -10 -10 -9 -9 --------- Run | Yrd Mat Min Mat Sto Machines Accessed 5 | . 2 1 2 . Terminals 4 | . 1 1 2 . Fabricators . | . . . . . Repair Stations . | . . . . . Recycling Units 1 | . 1 . . . Scanalyzers . | . . . . . Garrison Access . | . . . . . Total Hacks 11 | . 4 1 6 . Successful 3 | . . 1 2 . Failed 8 | . 4 . 4 . Catastrophic . | . . . . . Database Lockouts . | . . . . . Manual 6 | . . . 6 . Terminals 9 | . 2 1 6 . Fabricators . | . . . . . Repair Stations . | . . . . . Recycling Units 2 | . 2 . . . Scanalyzers . | . . . . . Garrison Access . | . . . . . Terminal Hacks 1 | . . 1 . . Dispatch Records 1 | . . 1 . . Fabricator Hacks . | . . . . . Repair Station Hacks . | . . . . . Recycling Unit Hacks . | . . . . . Scanalyzer . | . . . . . Garrison Access Hacks . | . . . . . Unauthorized Hacks 2 | . . . 2 . Terminals 2 | . . . 2 . Botnet 2 | . . . 2 . Fabricators . | . . . . . Repair Stations . | . . . . . Recycling Units . | . . . . . Scanalyzers . | . . . . . Garrison Access . | . . . . . Data Cores Recovered . | . . . . . Used . | . . . . . Hacking Detections 3 | . 2 . 1 . Full Trace Events . | . . . . . Feedback Events . | . . . . . Feedback Blocked . | . . . . . Robot Schematics Acquired . | . . . . . Robots Built . | . . . . . Authchips . | . . . . . Time . | . . . . . Total Robot Build Rating . | . . . . . Part Schematics Acquired . | . . . . . Parts Built . | . . . . . Authchips . | . . . . . Time . | . . . . . Total Part Build Rating . | . . . . . Parts Repaired . | . . . . . Time . | . . . . . Parts Recycled . | . . . . . Recycled Matter . | . . . . . Retrieved Matter . | . . . . . Retrieved Components . | . . . . . Parts Scanalyzed . | . . . . . Part Schematics Acquired . | . . . . . Parts Damaged . | . . . . . Bothacking | -11 -10 -10 -9 -9 ------------ Run | Yrd Mat Min Mat Sto Used RIF Installer . | . . . . . Robots Hacked . | . . . . . Non-combat . | . . . . . Combat . | . . . . . Robot Hacks Applied . | . . . . . Relay Couplers Released . | . . . . . Fabnet Peak Effective % . | . . . . . Robots Rewired . | . . . . . Allies Hacked . | . . . . . Hacks Repelled . | . . . . . Allies | -11 -10 -10 -9 -9 -------- Run | Yrd Mat Min Mat Sto Total Allies . | . . . . . Largest Group . | . . . . . Highest-Rated Group . | . . . . . Highest-Rated Ally . | . . . . . Total Orders . | . . . . . Ally Attacks . | . . . . . Total Damage . | . . . . . Kills . | . . . . . Allies Corrupted . | . . . . . Allies Melted . | . . . . . Intel | -11 -10 -10 -9 -9 ------- Run | Yrd Mat Min Mat Sto Active Infowar (turns) . | . . . . . Robot Analysis Total . | . . . . . Derelict Logs Recovered . | . . . . . Drone Launches . | . . . . . Drone Recoveries . | . . . . . Exploration | -11 -10 -10 -9 -9 ------------- Run | Yrd Mat Min Mat Sto Turns Passed 589 | 45 277 180 64 23 Spaces Moved 502 | 31 184 142 100 45 Core 233 | 7 . 81 100 45 Treads . | . . . . . Legs 269 | 24 184 61 . . Wheels . | . . . . . Hover . | . . . . . Flight . | . . . . . Fastest Speed 50 | 50 120 50 50 50 Average Speed 88 | 112 120 80 50 50 Slowest Speed 190 | 190 120 120 50 50 Overloaded Moves . | . . . . . Propulsion Burnouts . | . . . . . Robots Hopped . | . . . . . Potential Cave-ins 3 | . . 3 . . Cave-ins Triggered 1 | . . 1 . . Exploration Rate (%) 23 | 3 31 53 13 17 Regions Visited 4 Branch Regions 2 Pre-discovered Areas . | . . . . . Known Exits Taken . | . . . . . Unknown Exits Taken 4 | 1 1 1 1 . Scrap Searched . | . . . . . Spaces Dug . | . . . . . Terrain Destroyed . | . . . . . Melee . | . . . . . Projectile . | . . . . . AOE . | . . . . . Terrain Rammed . | . . . . . Walls Destroyed . | . . . . . Machines Disabled . | . . . . . Actions | -11 -10 -10 -9 -9 --------- Run | Yrd Mat Min Mat Sto Total 576 | 38 209 171 113 45 Wait 23 | . . 12 11 . Move 498 | 30 183 141 99 45 Hop . | . . . . . Pick Up 9 | 2 6 . 1 . Fast Attach 8 | 6 1 . 1 . Attach 1 | . 1 . . . Detach . | . . . . . Swap . | . . . . . Drop 1 | . . . 1 . Fire 33 | . 15 18 . . Melee . | . . . . . Ram . | . . . . . Kick 3 | . 3 . . . Crush . | . . . . . Escape Stasis . | . . . . . Rewire . | . . . . . Trap . | . . . . . Miscellaneous . | . . . . . Route ------- -11/Scrapyard -10/Materials -10/Mines -9/Materials -9/Storage History --------- Turn | Location | Event 22 | -11/Scrapyard | Discovered new exit (range 15) 46 | -11/Scrapyard | Entered Materials 287 | -10/Materials | Discovered new exit (range 14) 301 | -10/Materials | Build established: Mutant 323 | -10/Materials | Entered Mines 398 | -10/Mines | Assembled infested the area 462 | -10/Mines | Released all parts (5) 490 | -10/Mines | Discovered new exit (range 8) 492 | -10/Mines | Crushed by falling debris 497 | -10/Mines | YI-UF0 nonchalantly dropped a Grenade Launcher on the ground 503 | -10/Mines | Entered Materials 503 | -9/Materials | Evolved 2 slots: Utility x2 547 | -9/Materials | Discovered new exit (range 10) 567 | -9/Materials | Entered Storage 590 | -9/Storage | Self-destructed Last Messages --------------- >>Trojan(Botnet) Trojan loaded successfully. Testing... Terminal linked with 0 systems. Awaiting botnet instructions. 00530_ Connecting with Terminal... >>Trojan(Botnet) Trojan loaded successfully. Testing... Terminal linked with 1 system. Awaiting botnet instructions. 00535_ Dropped Tractor Beam. 00536_ Acquired Lrg. Storage Unit. 00547_ EXIT=FOUND LOCATION=UNKNOWN GOAL=ESCAPE 00588_ K-01 Serf collects debris. 00590_ Triggered Explosive Trap. 00590_ An explosion rips through the floor. 00590_ Transfer Shaft disabled. Map ----- +----------------------------------------------------+ | ???????????????????????????????????????????????? | | ???????????????????????????????????????????????? | | ???????????????????????????????????????????????? | | ???????????????????????????????????????????????? | | ???????????????????????????????????????????????? | | ???????????????????????????????????????????????? | | ???????????????????????????????????????????????? | | ???????????????????????????????????????????????? | | ???????????????????????????????????????????????? | | ???????????????????????????????????????????????? | | ???????????????????????????###+#????##?????????? | | ???????????????????????????# ????# ???????? | | ???????????????????????????# ????# ??? #?? | | ???????????????????????????# """ # """ #?# | | ???????????????????????????# """ # """ #?# | | ???????????????????????????# # ### | | ??????????????????????????## """ # """ ?# | | ??????????????????????????# """ # """ #?# | | ?????????????????+?????????? """ #? """ #?? | | ?????????????"???# ??????????? ????? ??? | | ????????????""" ?# #############+#########/##### | | ????????# """ # | | ?????????? ku | | ?????????????"" # | | ?????????????????###+ ####################### | | ?????????????????# @ #???????????????????? | | ?????????????????# #???????????????????? | | ?????????????????# """ "" T#??????????????????? | | ?????????????????# """ """ ##??????????????????? | | ?????????????????# """ """ #???????????????????? | | ?????????????????# #???????????????????? | | ?????????????????# #???????????????????? | | ?????????????????? Y #???????????????????? | | ?????????????????####### #?????????????????????? | | ????????????????????????#??????????????????????? | | ???????????????????????????????????????????????? | | ???????????????????????????????????????????????? | | | | | | | | | | | | | | | | | | | | | | | | | | | +----------------------------------------------------+ Best States ------------- Heat Dissipation 28 Energy Generation 10 Energy Capacity 250 Matter Stores 286 Matter Capacity 300 Sight Range 16 Terrain Scan Density 10 Additional Mass Support 6 Armor Coverage 150 Evasion (%) 55 Item Schematics ----------------- None Robot Schematics ------------------ None Fabricated ------------ Nothing Repaired ---------- Nothing Alien Tech Used ----------------- None Achievements -------------- None Challenges ------------ None Game ------ Seed GuidedBattleCoupler Manual? 0 Play Time 00:13:29 Cumulative 57.7 hours Start 2025.10.13 @ 19:37:02 End 2025.10.13 @ 21:47:00 Sessions 5 Manual Loads 0 Difficulty Rogue Special Mode None Game No. 39 Rogue 39 Adventurer 0 Explorer 0 Win Type - Total 0 Types 0/0/0/0/0/0/0/0/0/0 Lore% 23 Gallery% 30 Achievement% 35 Wizard Run 0 Options --------- Layout 1 ASCII 0 Keyboard 0 Movement Numpad Keybinds 0 Fullscreen 1 Font 24/Smallcaps Map View 50x35 Zoom Use 0% Tactical HUD 1 Map Filters NONE Filters NONE Steam 1 RUN: c31ac7a4-5472-4c35-876a-e9e28a42e1c3